{"text_format":"3","workbook":"xlsx","n_sheets":3,"sheets":["Сведения о сотруднике","Зарплатный калькулятор","Индивидуальные зарплатные листы"],"not_rendered":{"defined_names":2},"read":"whole","date_system":"1900"}

{"sheet":"Сведения о сотруднике","index":0,"n_rows":7,"n_cols":13,"rows_kept":7,"merged":[[1,0,1,12],[2,0,2,5]]}
[]
["Сведения о сотруднике"]
["[Название компании]"]
["Код сотрудника","Имя сотрудника","Часовая ставка","Группа налогоплательщика","Федеральные налоги","Местные налоги","Налог на доходы","Социальное страхование","Медицинское страхование","Всего удержано налогов","Страховые вычеты","Другие регулярные вычеты","Итого регулярных вычетов\n(без учета налогов)"]
[1,"Василий Бутусов",{"v":10,"d":"10.00 ₽"},1,4,{"v":0.023,"d":"2.30%"},{"v":0.28,"d":"28.00%"},{"v":0.063,"d":"6.30%"},{"v":0.0145,"d":"1.45%"},{"$f":"Таблица1[[#This Row],[Местные налоги]]+Таблица1[[#This Row],[Налог на доходы]]+Таблица1[[#This Row],[Социальное страхование]]+Таблица1[[#This Row],[Медицинское страхование]]","v":{"v":0.38050000000000006,"d":"38.05%"}},{"v":20,"d":"20.00 ₽"},{"v":40,"d":"40.00 ₽"},{"$f":"Таблица1[[#This Row],[Страховые вычеты]]+Таблица1[[#This Row],[Другие регулярные вычеты]]","v":{"v":60,"d":"60.00 ₽"}}]
[2,"Николай Белых",{"v":13,"d":"13.00 ₽"},1,4,{"v":0.023,"d":"2.30%"},{"v":0.28,"d":"28.00%"},{"v":0.063,"d":"6.30%"},{"v":0.0145,"d":"1.45%"},{"$f":"Таблица1[[#This Row],[Местные налоги]]+Таблица1[[#This Row],[Налог на доходы]]+Таблица1[[#This Row],[Социальное страхование]]+Таблица1[[#This Row],[Медицинское страхование]]","v":{"v":0.38050000000000006,"d":"38.05%"}},{"v":20,"d":"20.00 ₽"},{"v":52,"d":"52.00 ₽"},{"$f":"Таблица1[[#This Row],[Страховые вычеты]]+Таблица1[[#This Row],[Другие регулярные вычеты]]","v":{"v":72,"d":"72.00 ₽"}}]
[3,"Светлана Коновалова",{"v":10,"d":"10.00 ₽"},1,4,{"v":0.023,"d":"2.30%"},{"v":0.28,"d":"28.00%"},{"v":0.063,"d":"6.30%"},{"v":0.0145,"d":"1.45%"},{"$f":"Таблица1[[#This Row],[Местные налоги]]+Таблица1[[#This Row],[Налог на доходы]]+Таблица1[[#This Row],[Социальное страхование]]+Таблица1[[#This Row],[Медицинское страхование]]","v":{"v":0.38050000000000006,"d":"38.05%"}},{"v":20,"d":"20.00 ₽"},0,{"$f":"Таблица1[[#This Row],[Страховые вычеты]]+Таблица1[[#This Row],[Другие регулярные вычеты]]","v":{"v":20,"d":"20.00 ₽"}}]

{"sheet":"Зарплатный калькулятор","index":1,"n_rows":7,"n_cols":11,"rows_kept":7,"merged":[[0,0,1,8],[2,0,2,5]]}
["Зарплатный калькулятор"]
[{"$nulls":9},"Завершение периода:",{"v":45688,"d":"4568800.00%"}]
[{"$f":"'Сведения о сотруднике'!$A$3","v":"[Название компании]"}]
["Код сотрудника","Имя сотрудника","Отработанные нормативные часы","Отпускные часы","Больничные часы","Сверхурочные часы","Сверхурочная ставка","Общая зарплата","Налоги и вычеты ","Другие вычеты","Чистая зарплата"]
[1,{"$f":"VLOOKUP(A5,Таблица1[],2,FALSE)","v":"Василий Бутусов"},{"v":50,"d":"50.00"},{"v":5,"d":"5.00"},{"v":1,"d":"1.00"},null,null,{"$f":"(VLOOKUP(A5,Таблица1[],3,FALSE)*(Таблица2[[#This Row],[Отработанные нормативные часы]]+Таблица2[[#This Row],[Отпускные часы]]+Таблица2[[#This Row],[Больничные часы]])+Таблица2[[#This Row],[Сверхурочные часы]]*Таблица2[[#This Row],[Сверхурочная ставка]])","v":{"v":560,"d":"560.00 ₽"}},{"$f":"VLOOKUP(A5,Таблица1[],10,FALSE)*Таблица2[[#This Row],[Общая зарплата]]+Таблица1[[#This Row],[Итого регулярных вычетов\n(без учета налогов)]]","v":{"v":273.08000000000004,"d":"273.08 ₽"}},{"v":20,"d":"20.00 ₽"},{"$f":"Таблица2[[#This Row],[Общая зарплата]]-Таблица2[[#This Row],[Налоги и вычеты ]]-Таблица2[[#This Row],[Другие вычеты]]","v":{"v":266.91999999999996,"d":"266.92 ₽"}}]
[2,{"$f":"VLOOKUP(A6,Таблица1[],2,FALSE)","v":"Николай Белых"},{"v":40,"d":"40.00"},{"v":0,"d":"0.00"},{"v":0,"d":"0.00"},null,null,{"$f":"(VLOOKUP(A6,Таблица1[],3,FALSE)*(Таблица2[[#This Row],[Отработанные нормативные часы]]+Таблица2[[#This Row],[Отпускные часы]]+Таблица2[[#This Row],[Больничные часы]])+Таблица2[[#This Row],[Сверхурочные часы]]*Таблица2[[#This Row],[Сверхурочная ставка]])","v":{"v":520,"d":"520.00 ₽"}},{"$f":"VLOOKUP(A6,Таблица1[],10,FALSE)*Таблица2[[#This Row],[Общая зарплата]]+Таблица1[[#This Row],[Итого регулярных вычетов\n(без учета налогов)]]","v":{"v":269.86,"d":"269.86 ₽"}},{"v":52,"d":"52.00 ₽"},{"$f":"Таблица2[[#This Row],[Общая зарплата]]-Таблица2[[#This Row],[Налоги и вычеты ]]-Таблица2[[#This Row],[Другие вычеты]]","v":{"v":198.14,"d":"198.14 ₽"}}]
[3,{"$f":"VLOOKUP(A7,Таблица1[],2,FALSE)","v":"Светлана Коновалова"},{"v":52,"d":"52.00"},{"v":0,"d":"0.00"},{"v":0,"d":"0.00"},{"v":2,"d":"2.00"},{"v":20,"d":"20.00 ₽"},{"$f":"(VLOOKUP(A7,Таблица1[],3,FALSE)*(Таблица2[[#This Row],[Отработанные нормативные часы]]+Таблица2[[#This Row],[Отпускные часы]]+Таблица2[[#This Row],[Больничные часы]])+Таблица2[[#This Row],[Сверхурочные часы]]*Таблица2[[#This Row],[Сверхурочная ставка]])","v":{"v":560,"d":"560.00 ₽"}},{"$f":"VLOOKUP(A7,Таблица1[],10,FALSE)*Таблица2[[#This Row],[Общая зарплата]]+Таблица1[[#This Row],[Итого регулярных вычетов\n(без учета налогов)]]","v":{"v":233.08000000000004,"d":"233.08 ₽"}},{"v":20,"d":"20.00 ₽"},{"$f":"Таблица2[[#This Row],[Общая зарплата]]-Таблица2[[#This Row],[Налоги и вычеты ]]-Таблица2[[#This Row],[Другие вычеты]]","v":{"v":306.91999999999996,"d":"306.92 ₽"}}]

{"sheet":"Индивидуальные зарплатные листы","index":2,"n_rows":48,"n_cols":8,"rows_kept":48,"merged":[[1,2,1,7],[13,2,13,7],[25,2,25,7],[38,2,38,7]]}
[]
[null,null,{"$f":"('Сведения о сотруднике'!$A$3)","v":"[Название компании]"}]
[null,null,"Период:",{"$f":"'Зарплатный калькулятор'!$K$2","v":{"v":45688,"d":"4568800.00%"}},"Имя сотрудника",{"$f":"IFERROR(VLOOKUP(H3,Таблица1[],2),\"\")","v":"Василий Бутусов"},"Код сотрудника",1]
[]
[null,null,"Группа налогоплательщика",{"$f":"IFERROR(VLOOKUP(H3,Таблица1[],4),\"\")","v":1},"Федеральные налоги",{"$f":"IFERROR(VLOOKUP(H3,Таблица1[],5,FALSE),\"\")","v":4},"Отработанные часы",{"$f":"IFERROR(VLOOKUP(H3,Таблица2[],3,FALSE),\"\")","v":50}]
[null,null,"Часовая ставка",{"$f":"IFERROR(VLOOKUP(H3,Таблица1[],3,FALSE),\"\")","v":{"v":10,"d":"10.00 ₽"}},"Сверхурочная ставка",{"$f":"IFERROR(VLOOKUP(H3,Таблица2[],7,FALSE),\"\")","v":0},"Больничные часы",{"$f":"IFERROR(VLOOKUP(H3,Таблица2[],5,FALSE),\"\")","v":1}]
[null,null,"Социальное страхование",{"$f":"IFERROR(IFERROR(VLOOKUP(H3,Таблица1[],8,FALSE),\"\")*H9,\"\")","v":{"v":35.28,"d":"35.28 ₽"}},"Налог на доходы физических лиц ",{"$f":"IFERROR(IFERROR(VLOOKUP(H3,Таблица1[],7,FALSE),\"\")*H9,\"\")","v":{"v":156.8,"d":"156.80 ₽"}},"Отпускные часы",{"$f":"IFERROR(VLOOKUP(H3,Таблица2[],4,FALSE),\"\")","v":5}]
[null,null,"Медицинское страхование ",{"$f":"IFERROR(IFERROR(VLOOKUP(H3,Таблица1[],9,FALSE),\"\")*H9,\"\")","v":{"v":8.120000000000001,"d":"8.12 ₽"}},"Местные налоги ",{"$f":"IFERROR(IFERROR(VLOOKUP(H3,Таблица1[],6,FALSE),\"\")*H9,\"\")","v":{"v":12.879999999999999,"d":"12.88 ₽"}},"Сверхурочные часы",{"$f":"IFERROR(VLOOKUP(H3,Таблица2[],6,FALSE),\"\")","v":0}]
[null,null,"Страховые вычеты",{"$f":"IFERROR(VLOOKUP(H3,Таблица1[],11,FALSE),\"\")","v":{"v":20,"d":"20.00 ₽"}},"Другие регулярные вычеты",{"$f":"IFERROR(VLOOKUP(H3,Таблица1[],12,FALSE),\"\")","v":{"v":40,"d":"40.00 ₽"}},"Общая зарплата",{"$f":"IFERROR(VLOOKUP(H3,Таблица2[],8,FALSE),\"\")","v":{"v":560,"d":"560.00 ₽"}}]
[null,null,"Итого налогов и регулярных вычетов ",{"$f":"IFERROR(SUM(F7:F9)+SUM(D7:D9),\"\")","v":{"v":273.08000000000004,"d":"273.08 ₽"}},"Другие вычеты",{"$f":"IFERROR(VLOOKUP(H3,Таблица2[],10,FALSE),\"\")","v":{"v":20,"d":"20.00 ₽"}},"Итого налогов и вычетов ",{"$f":"IFERROR(IFERROR(VLOOKUP(H3,Таблица2[],9,FALSE),\"\")+F10,\"\")","v":{"v":293.08000000000004,"d":"293.08 ₽"}}]
[{"$nulls":6},"Чистая зарплата",{"$f":"IFERROR(VLOOKUP(H3,Таблица2[],11,FALSE),\"\")","v":{"v":266.91999999999996,"d":"266.92 ₽"}}]
[]
[]
[null,null,{"$f":"('Сведения о сотруднике'!$A$3)","v":"[Название компании]"}]
[null,null,"Период:",{"$f":"'Зарплатный калькулятор'!$K$2","v":{"v":45688,"d":"4568800.00%"}},"Имя сотрудника",{"$f":"IFERROR(VLOOKUP(H15,Таблица1[],2),\"\")","v":"Николай Белых"},"Код сотрудника",2]
[]
[null,null,"Группа налогоплательщика",{"$f":"IFERROR(VLOOKUP(H15,Таблица1[],4),\"\")","v":1},"Федеральные налоги",{"$f":"IFERROR(VLOOKUP(H15,Таблица1[],5,FALSE),\"\")","v":4},"Отработанные часы",{"$f":"IFERROR(VLOOKUP(H15,Таблица2[],3,FALSE),\"\")","v":40}]
[null,null,"Часовая ставка",{"$f":"IFERROR(VLOOKUP(H15,Таблица1[],3,FALSE),\"\")","v":{"v":13,"d":"13.00 ₽"}},"Сверхурочная ставка",{"$f":"IFERROR(VLOOKUP(H15,Таблица2[],7,FALSE),\"\")","v":0},"Больничные часы",{"$f":"IFERROR(VLOOKUP(H15,Таблица2[],5,FALSE),\"\")","v":0}]
[null,null,"Социальное страхование",{"$f":"IFERROR(IFERROR(VLOOKUP(H15,Таблица1[],8,FALSE),\"\")*H21,\"\")","v":{"v":32.76,"d":"32.76 ₽"}},"Налог на доходы физических лиц ",{"$f":"IFERROR(IFERROR(VLOOKUP(H15,Таблица1[],7,FALSE),\"\")*H21,\"\")","v":{"v":145.60000000000002,"d":"145.60 ₽"}},"Отпускные часы",{"$f":"IFERROR(VLOOKUP(H15,Таблица2[],4,FALSE),\"\")","v":0}]
[null,null,"Медицинское страхование ",{"$f":"IFERROR(IFERROR(VLOOKUP(H15,Таблица1[],9,FALSE),\"\")*H21,\"\")","v":{"v":7.54,"d":"7.54 ₽"}},"Местные налоги ",{"$f":"IFERROR(IFERROR(VLOOKUP(H15,Таблица1[],6,FALSE),\"\")*H21,\"\")","v":{"v":11.959999999999999,"d":"11.96 ₽"}},"Сверхурочные часы",{"$f":"IFERROR(VLOOKUP(H15,Таблица2[],6,FALSE),\"\")","v":0}]
[null,null,"Страховые вычеты",{"$f":"IFERROR(VLOOKUP(H15,Таблица1[],11,FALSE),\"\")","v":{"v":20,"d":"20.00 ₽"}},"Другие регулярные вычеты",{"$f":"IFERROR(VLOOKUP(H15,Таблица1[],12,FALSE),\"\")","v":{"v":52,"d":"52.00 ₽"}},"Общая зарплата",{"$f":"IFERROR(VLOOKUP(H15,Таблица2[],8,FALSE),\"\")","v":{"v":520,"d":"520.00 ₽"}}]
[null,null,"Итого налогов и регулярных вычетов ",{"$f":"IFERROR(SUM(F19:F21)+SUM(D19:D21),\"\")","v":{"v":269.86,"d":"269.86 ₽"}},"Другие вычеты",{"$f":"IFERROR(VLOOKUP(H15,Таблица2[],10,FALSE),\"\")","v":{"v":52,"d":"52.00 ₽"}},"Итого налогов и вычетов ",{"$f":"IFERROR(IFERROR(VLOOKUP(H15,Таблица2[],9,FALSE),\"\")+F22,\"\")","v":{"v":321.86,"d":"321.86 ₽"}}]
[{"$nulls":6},"Чистая зарплата",{"$f":"IFERROR(VLOOKUP(H15,Таблица2[],11,FALSE),\"\")","v":{"v":198.14,"d":"198.14 ₽"}}]
[]
[]
[null,null,{"$f":"('Сведения о сотруднике'!$A$3)","v":"[Название компании]"}]
[null,null,"Период:",{"$f":"'Зарплатный калькулятор'!$K$2","v":{"v":45688,"d":"4568800.00%"}},"Имя сотрудника",{"$f":"IFERROR(VLOOKUP(H27,Таблица1[],2),\"\")","v":"Светлана Коновалова"},"Код сотрудника",3]
[]
[null,null,"Группа налогоплательщика",{"$f":"IFERROR(VLOOKUP(H27,Таблица1[],4),\"\")","v":1},"Федеральные налоги",{"$f":"IFERROR(VLOOKUP(H27,Таблица1[],5,FALSE),\"\")","v":4},"Отработанные часы",{"$f":"IFERROR(VLOOKUP(H27,Таблица2[],3,FALSE),\"\")","v":52}]
[null,null,"Часовая ставка",{"$f":"IFERROR(VLOOKUP(H27,Таблица1[],3,FALSE),\"\")","v":{"v":10,"d":"10.00 ₽"}},"Сверхурочная ставка",{"$f":"IFERROR(VLOOKUP(H27,Таблица2[],7,FALSE),\"\")","v":{"v":20,"d":"20.00 ₽"}},"Больничные часы",{"$f":"IFERROR(VLOOKUP(H27,Таблица2[],5,FALSE),\"\")","v":0}]
[null,null,"Социальное страхование",{"$f":"IFERROR(IFERROR(VLOOKUP(H27,Таблица1[],8,FALSE),\"\")*H33,\"\")","v":{"v":35.28,"d":"35.28 ₽"}},"Налог на доходы физических лиц ",{"$f":"IFERROR(IFERROR(VLOOKUP(H27,Таблица1[],7,FALSE),\"\")*H33,\"\")","v":{"v":156.8,"d":"156.80 ₽"}},"Отпускные часы",{"$f":"IFERROR(VLOOKUP(H27,Таблица2[],4,FALSE),\"\")","v":0}]
[null,null,"Медицинское страхование ",{"$f":"IFERROR(IFERROR(VLOOKUP(H27,Таблица1[],9,FALSE),\"\")*H33,\"\")","v":{"v":8.120000000000001,"d":"8.12 ₽"}},"Местные налоги ",{"$f":"IFERROR(IFERROR(VLOOKUP(H27,Таблица1[],6,FALSE),\"\")*H33,\"\")","v":{"v":12.879999999999999,"d":"12.88 ₽"}},"Сверхурочные часы",{"$f":"IFERROR(VLOOKUP(H27,Таблица2[],6,FALSE),\"\")","v":2}]
[null,null,"Страховые вычеты",{"$f":"IFERROR(VLOOKUP(H27,Таблица1[],11,FALSE),\"\")","v":{"v":20,"d":"20.00 ₽"}},"Другие регулярные вычеты",{"$f":"IFERROR(VLOOKUP(H27,Таблица1[],12,FALSE),\"\")","v":0},"Общая зарплата",{"$f":"IFERROR(VLOOKUP(H27,Таблица2[],8,FALSE),\"\")","v":{"v":560,"d":"560.00 ₽"}}]
[null,null,"Итого налогов и регулярных вычетов ",{"$f":"IFERROR(SUM(F31:F33)+SUM(D31:D33),\"\")","v":{"v":233.08,"d":"233.08 ₽"}},"Другие вычеты",{"$f":"IFERROR(VLOOKUP(H27,Таблица2[],10,FALSE),\"\")","v":{"v":20,"d":"20.00 ₽"}},"Итого налогов и вычетов ",{"$f":"IFERROR(IFERROR(VLOOKUP(H27,Таблица2[],9,FALSE),\"\")+F34,\"\")","v":{"v":253.08000000000004,"d":"253.08 ₽"}}]
[{"$nulls":6},"Чистая зарплата",{"$f":"IFERROR(VLOOKUP(H27,Таблица2[],11,FALSE),\"\")","v":{"v":306.91999999999996,"d":"306.92 ₽"}}]
[]
[]
[]
[null,null,{"$f":"('Сведения о сотруднике'!$A$3)","v":"[Название компании]"}]
[null,null,"Период:",{"$f":"'Зарплатный калькулятор'!$K$2","v":{"v":45688,"d":"4568800.00%"}},"Имя сотрудника",{"$f":"IFERROR(VLOOKUP(H40,Таблица1[],2),\"\")","v":""},"Код сотрудника"]
[]
[null,null,"Группа налогоплательщика",{"$f":"IFERROR(VLOOKUP(H40,Таблица1[],4),\"\")","v":""},"Федеральные налоги",{"$f":"IFERROR(VLOOKUP(H40,Таблица1[],5,FALSE),\"\")","v":""},"Отработанные часы",{"$f":"IFERROR(VLOOKUP(H40,Таблица2[],3,FALSE),\"\")","v":""}]
[null,null,"Часовая ставка",{"$f":"IFERROR(VLOOKUP(H40,Таблица1[],3,FALSE),\"\")","v":""},"Сверхурочная ставка",{"$f":"IFERROR(VLOOKUP(H40,Таблица2[],7,FALSE),\"\")","v":""},"Больничные часы",{"$f":"IFERROR(VLOOKUP(H40,Таблица2[],5,FALSE),\"\")","v":""}]
[null,null,"Социальное страхование",{"$f":"IFERROR(IFERROR(VLOOKUP(H40,Таблица1[],8,FALSE),\"\")*H46,\"\")","v":""},"Налог на доходы физических лиц ",{"$f":"IFERROR(IFERROR(VLOOKUP(H40,Таблица1[],7,FALSE),\"\")*H46,\"\")","v":""},"Отпускные часы",{"$f":"IFERROR(VLOOKUP(H40,Таблица2[],4,FALSE),\"\")","v":""}]
[null,null,"Медицинское страхование ",{"$f":"IFERROR(IFERROR(VLOOKUP(H40,Таблица1[],9,FALSE),\"\")*H46,\"\")","v":""},"Местные налоги ",{"$f":"IFERROR(IFERROR(VLOOKUP(H40,Таблица1[],6,FALSE),\"\")*H46,\"\")","v":""},"Сверхурочные часы",{"$f":"IFERROR(VLOOKUP(H40,Таблица2[],6,FALSE),\"\")","v":""}]
[null,null,"Страховые вычеты",{"$f":"IFERROR(VLOOKUP(H40,Таблица1[],11,FALSE),\"\")","v":""},"Другие регулярные вычеты",{"$f":"IFERROR(VLOOKUP(H40,Таблица1[],12,FALSE),\"\")","v":""},"Общая зарплата",{"$f":"IFERROR(VLOOKUP(H40,Таблица2[],8,FALSE),\"\")","v":""}]
[null,null,"Итого налогов и регулярных вычетов ",{"$f":"IFERROR(SUM(F44:F46)+SUM(D44:D46),\"\")","v":0},"Другие вычеты",{"$f":"IFERROR(VLOOKUP(H40,Таблица2[],10,FALSE),\"\")","v":""},"Итого налогов и вычетов ",{"$f":"IFERROR(IFERROR(VLOOKUP(H40,Таблица2[],9,FALSE),\"\")+F47,\"\")","v":""}]
[{"$nulls":6},"Чистая зарплата",{"$f":"IFERROR(VLOOKUP(H40,Таблица2[],11,FALSE),\"\")","v":""}]